bitfinex/quotes_ETHUSD_20220123
["timestamp","ask_amount","ask_price","bid_price","bid_amount"]
[1642979650643,1.75577114,2540.2,2539.2,3.173e-05]
[1642979652049,1.75577114,2540.2,2539.3,0.05754555]
[1642979652251,1.75577114,2540.2,2539.2,3.173e-05]
[1642979654526,1.75577114,2540.2,2538.4,1.33211986]
[1642979654527,0.0726018,2540.0,2538.4,1.33211986]
[1642979654724,1.30485857,2539.0,2538.4,1.33211986]
[1642979654926,12.82845729,2540.1,2538.4,1.33211986]
[1642979654927,1.22715823,2538.6,2538.4,1.33211986]
[1642979655126,0.51545551,2539.7,2538.4,1.33211986]
[1642979655326,0.491,2539.7,2538.4,1.33211986]
[1642979655524,0.491,2539.7,2537.6,0.02490312]
[1642979655728,0.01296656,2538.9,2537.6,3.12e-06]
[1642979655927,0.01225179,2538.4,2537.6,3.12e-06]
[1642979656127,1.99745796,2538.3,2537.6,3.12e-06]
[1642979656326,0.491,2538.3,2537.6,3.12e-06]
[1642979657145,0.491,2538.3,2537.2,0.1575]
[1642979657146,0.00982807,2538.2,2537.2,3.12e-06]
[1642979657347,1.36362869,2536.7,2535.8,4.01587756]
[1642979657741,0.01272739,2537.8,2535.9,3.21814254]
[1642979657943,0.0312691,2538.9,2535.9,3.21814254]
[1642979657944,3.97725863,2539.6,2536.0,0.20772436]
[1642979658241,3.3345,2539.8,2536.5,0.0121214]
[1642979658242,0.01200173,2538.7,2536.5,0.0121214]
[1642979658442,0.491,2538.6,2536.5,0.0121214]
[1642979658642,8.8,2538.5,2536.0,3.19258595]
[1642979658840,1.39923552,2537.0,2536.0,0.01232201]
[1642979659042,0.01267419,2538.1,2536.0,23.95]
[1642979659043,0.00764162,2536.9,2536.0,23.95]
[1642979659249,0.491,2537.5,2536.6,1.16275399]
[1642979659445,0.491,2537.5,2535.8,0.13819997]
[1642979659652,3.23111775,2537.4,2535.8,0.13819997]
[1642979659845,0.491,2537.3,2535.8,0.13819997]
[1642979660044,1.50658765,2536.6,2535.8,0.13819997]
[1642979660294,0.01297521,2537.4,2535.9,1.42914468]
[1642979660499,2.96001,2538.4,2535.9,1.42914468]
[1642979660500,0.17043139,2538.3,2535.9,23.98947513]
[1642979660695,0.17043139,2538.3,2535.8,0.08819997]
[1642979660696,0.1575,2538.5,2536.1,23.95]
[1642979660896,0.17929089,2538.7,2536.3,23.95]
[1642979661094,0.17929089,2538.7,2536.4,0.01273581]
[1642979661295,1.30214072,2537.6,2536.4,3.16814254]
[1642979661496,0.1575,2538.5,2537.3,1.22281356]
[1642979661697,0.1575,2538.5,2536.4,3.21814254]
[1642979661896,0.17924527,2538.6,2536.4,3.38534254]
[1642979662097,0.02174527,2538.6,2536.5,24.1348]
[1642979662301,0.02174527,2538.6,2536.7,23.95]
[1642979662600,0.02174527,2538.6,2536.9,23.95]
[1642979662797,0.02174527,2538.6,2538.5,0.72066133]
[1642979663000,0.02174527,2538.6,2538.0,0.13819997]
[1642979663197,0.02174527,2538.6,2538.0,0.03819997]
[1642979663597,1.2890174,2538.5,2538.0,0.03819997]
[1642979663801,1.30992933,2537.6,2537.1,1.33211986]
[1642979664051,1.21688191,2537.2,2537.1,1.33211986]
[1642979664252,0.1575,2538.5,2537.1,1.33211986]
[1642979664253,0.01220982,2537.5,2537.1,1.33211986]
[1642979664451,0.01220982,2537.5,2536.5,2.68375903]
[1642979664648,0.491,2537.8,2536.6,0.08095328]
[1642979664856,0.01354069,2537.7,2536.5,2.68375903]
[1642979665046,0.491,2537.8,2536.5,2.68375903]
[1642979665249,1.37978903,2537.3,2536.5,2.68375903]
[1642979665450,1.37978903,2537.3,2536.4,0.08819997]
[1642979665649,0.1575,2538.1,2536.4,0.08819997]
[1642979665847,0.0125796,2537.6,2536.4,0.08819997]
[1642979666048,0.0125796,2537.6,2536.5,0.05409332]
[1642979666252,0.01229308,2537.9,2536.4,0.08819997]
[1642979666452,0.6485,2537.8,2536.4,0.08819997]
[1642979666650,1.495685,2537.1,2536.4,0.08819997]
[1642979666851,0.1575,2537.6,2536.4,0.08819997]
[1642979667157,6.81268,2538.4,2536.5,0.03306392]
[1642979667158,3.37564254,2538.3,2536.5,0.03306392]
[1642979667354,0.1575,2538.3,2536.4,0.08819997]
[1642979667550,0.05063269,2537.9,2536.4,0.08819997]
[1642979667794,1.34560795,2537.8,2536.4,0.08819997]
[1642979667995,0.01249671,2538.0,2536.4,0.08819997]
[1642979668195,0.01249671,2538.0,2537.7,1.49936977]
[1642979668796,0.01249671,2538.0,2536.5,0.04605792]
[1642979668998,1.21527811,2537.7,2536.4,0.08819997]
[1642979669201,0.01249671,2538.0,2536.4,0.08819997]
[1642979669803,0.01161113,2537.9,2536.4,0.08819997]
[1642979670007,0.491,2537.8,2536.0,1.37031983]
[1642979670202,0.1575,2537.7,2536.0,1.37031983]
[1642979670402,0.01295314,2537.4,2536.0,1.37031983]
[1642979670601,0.6485,2537.3,2536.0,1.37031983]
[1642979670802,0.6485,2537.3,2536.8,1.11408148]
[1642979671004,0.1575,2537.3,2536.1,0.08095328]
[1642979671205,1.42262609,2537.2,2536.0,0.03819997]
[1642979671406,0.1575,2537.9,2536.0,0.03819997]
[1642979671670,0.491,2537.2,2536.0,0.03819997]
[1642979671868,0.1575,2537.1,2535.7,0.02639994]
[1642979672069,0.491,2537.0,2536.7,0.06892874]
[1642979672269,0.1577,2537.5,2536.6,1.40914749]
[1642979672270,0.491,2536.9,2536.6,1.40914749]
[1642979672470,1.167888,2536.8,2535.7,0.02639994]
[1642979672675,0.491,2536.9,2535.7,0.02639994]
[1642979672676,1.09751783,2536.1,2535.7,0.02639994]
[1642979672874,0.1577,2536.6,2535.2,1.47313558]
[1642979673171,0.01213227,2536.4,2536.2,8.727e-05]
[1642979673371,8.8577,2536.3,2536.2,8.727e-05]
[1642979673573,9.3487,2536.3,2536.2,8.727e-05]
[1642979673772,1.17185704,2536.2,2535.2,1.47313558]
[1642979673972,1.53147514,2535.8,2535.2,1.47313558]
[1642979674372,0.491,2536.1,2535.2,1.47313558]
[1642979674773,0.04324235,2536.0,2535.2,1.47313558]
[1642979674975,0.02163661,2536.4,2535.2,1.48572196]
[1642979675180,0.02163661,2536.4,2535.3,24.25]
[1642979675394,0.02163661,2536.4,2535.4,24.01885954]
[1642979675591,0.02163661,2536.4,2535.4,26.63471321]
[1642979675790,0.02163661,2536.4,2535.4,27.96683307]
[1642979675990,0.02163661,2536.4,2535.4,4.01683307]
[1642979676193,0.04088155,2536.3,2535.4,26.63471321]
[1642979676392,0.02163661,2536.4,2535.5,0.05134845]
[1642979676595,0.02163661,2536.4,2535.6,23.95]
[1642979676791,0.02163661,2536.4,2535.7,1.36705947]
[1642979676992,0.02163661,2536.4,2535.8,24.25]
[1642979677193,0.02163661,2536.4,2535.9,27.19387354]
[1642979677396,0.02163661,2536.4,2535.9,23.95]
[1642979677596,3.37584254,2538.1,2537.0,1.50077949]
[1642979677908,9.63909832,2538.2,2537.1,4.20892021]
[1642979677909,7.1635,2538.2,2537.1,4.20892021]
[1642979678098,0.1575,2539.7,2537.4,23.95]
[1642979678295,0.1575,2540.1,2538.1,5.0]
[1642979678494,0.1575,2540.1,2538.5,0.01205287]
[1642979678697,0.04,2539.0,2538.6,3.32482682]
[1642979678901,1.79577114,2540.2,2538.8,8.7]
[1642979679173,1.33272305,2540.0,2538.8,8.7]
[1642979679370,1.33272305,2540.0,2538.8,9.0]
[1642979679572,1.33272305,2540.0,2538.8,32.95]
[1642979679774,1.33272305,2540.0,2538.8,9.0]
[1642979679974,1.33272305,2540.0,2538.9,0.03538824]
[1642979680276,0.01264747,2540.1,2539.7,1.2361636]
[1642979680675,0.01264747,2540.1,2539.0,3.24387354]
[1642979681475,1.19964667,2539.9,2539.1,23.95]
[1642979681678,0.01264747,2540.1,2539.0,3.24387354]
[1642979681679,1.13096849,2539.5,2539.0,3.24387354]
[1642979681879,1.16737433,2538.8,2538.0,3.22338814]
[1642979682077,0.01210829,2538.8,2537.2,6.59355849]
[1642979682276,0.01210829,2538.8,2537.2,30.54355849]
[1642979682476,0.1575,2539.4,2537.2,31.50793623]
[1642979682677,0.07339276,2539.3,2538.6,1.31811809]
[1642979682902,0.50397704,2539.5,2537.2,6.59355849]
[1642979682903,0.1575,2539.2,2537.2,6.59355849]
[1642979683107,0.01297704,2539.5,2537.2,6.59355849]
[1642979683108,1.47932499,2538.8,2537.2,6.59355849]
[1642979683300,0.98572,2539.2,2537.5,0.96437774]
[1642979683500,0.98572,2539.2,2537.2,3.65010271]
[1642979683501,0.1575,2539.1,2537.3,3.22338814]
[1642979683900,0.1575,2539.1,2537.6,5.101e-05]
[1642979683901,0.6485,2539.1,2537.6,5.101e-05]
[1642979684099,0.01266113,2538.9,2538.0,1.19203514]
[1642979684300,1.27434491,2538.2,2538.0,1.19203514]
[1642979684700,1.27434491,2538.2,2538.0,1.0984447]
[1642979684904,1.53877247,2537.8,2537.6,2.18628714]
[1642979685104,0.09359044,2538.3,2537.6,2.18628714]
[1642979685302,0.1575,2538.2,2537.6,2.18628714]
[1642979685502,0.1575,2538.2,2537.2,0.41398035]
[1642979685709,0.29569997,2538.4,2537.2,0.41398035]
[1642979685903,0.13819997,2538.4,2537.2,0.41398035]
[1642979686304,0.0522334,2538.3,2537.2,0.41398035]
[1642979686541,1.18996852,2538.3,2537.9,1.5325737]
[1642979686840,0.13819997,2538.4,2537.9,1.5325737]
[1642979687247,1.36426345,2538.2,2537.9,1.5325737]
[1642979687646,0.13819997,2538.4,2537.9,1.5325737]
[1642979687849,0.13819997,2538.4,2537.2,0.42692053]
[1642979688053,0.1575,2539.0,2537.2,0.41398035]
[1642979688263,6.1125072,2539.9,2537.2,0.41398035]
[1642979688264,0.04,2542.4,2539.3,3.57650123]
[1642979688454,0.01264212,2542.2,2540.5,0.01243668]
[1642979688652,0.19694,2542.1,2540.5,0.01243668]
[1642979688850,0.04,2542.4,2540.5,0.01243668]
[1642979689051,1.31622803,2541.2,2540.9,0.95517846]
[1642979689257,0.04,2542.4,2541.1,0.01215661]
[1642979689451,0.04,2542.4,2541.5,0.01268009]
[1642979689652,1.35168095,2542.5,2541.5,0.01268009]
[1642979689850,8.65,2542.2,2541.4,1.52555523]
[1642979690307,0.01246841,2541.5,2539.3,2.67637652]
[1642979690511,5.0,2540.6,2537.8,0.01241378]
[1642979690710,0.01246275,2539.4,2537.3,3.5]
[1642979690913,0.56724535,2539.3,2537.3,3.5]
[1642979691107,1.13471586,2538.0,2537.2,0.3]
[1642979691309,1.1841056,2537.5,2537.2,1.25517846]
[1642979691508,0.01243763,2538.1,2537.6,2.67605244]
[1642979691707,0.01243763,2538.1,2537.2,0.3]
[1642979691708,8.65,2537.9,2537.2,0.3]
[1642979691908,0.57238591,2537.8,2535.3,0.1575]
[1642979692113,0.08138591,2537.8,2536.1,0.01296523]
[1642979692310,2.53458054,2539.6,2536.5,0.01244293]
[1642979692508,9.96523,2540.5,2539.0,1.38636422]
[1642979692509,1.31300477,2539.1,2539.0,1.38636422]
[1642979692710,0.04,2541.0,2539.0,1.38636422]
[1642979692711,0.04,2541.0,2539.0,0.01279842]
[1642979692913,0.04,2541.0,2539.0,0.17359842]
[1642979693127,0.04,2541.0,2539.0,0.01279842]
[1642979693310,0.05293867,2541.0,2539.0,0.01279842]
[1642979693515,0.491,2540.9,2539.0,0.01279842]
[1642979693710,3.12338814,2540.8,2538.8,0.13819997]
[1642979693909,0.04,2541.0,2539.8,1.32324648]
[1642979694146,0.04,2541.0,2539.9,0.01227231]
[1642979694347,0.04,2541.0,2538.8,0.13819997]
[1642979694548,0.04,2541.0,2538.9,0.1576]
[1642979694744,1.14874689,2539.6,2538.8,0.13819997]
[1642979695148,0.05908078,2541.0,2538.1,0.13819997]
[1642979695149,0.04522971,2539.1,2538.1,0.13819997]
[1642979695348,0.01216376,2539.8,2537.6,0.01234651]
[1642979695349,1.13043138,2538.4,2537.6,0.01234651]
[1642979695546,1.21891348,2537.9,2537.6,0.01234651]
[1642979695752,1.46528244,2538.1,2537.7,2.23511952]
[1642979696947,1.95628244,2538.1,2536.9,1.76771952]
[1642979697148,1.09836761,2537.4,2536.9,1.76771952]
[1642979697801,0.19694,2538.8,2536.9,1.76771952]
[1642979697802,1.14847047,2539.7,2537.3,0.01220138]
[1642979697998,1.14847047,2539.7,2538.1,0.01263749]
[1642979698201,1.14847047,2539.7,2538.7,0.01291015]
[1642979698202,1.1356,2539.7,2538.7,0.01291015]
[1642979698601,6.24694,2539.6,2537.9,3.24387354]
[1642979698802,6.24694,2539.6,2537.4,5.65110282]
[1642979698803,0.01273088,2539.1,2538.2,0.1592]
[1642979698998,0.01273088,2539.1,2537.4,3.19510282]
[1642979698999,0.01233388,2538.5,2537.4,3.19510282]
[1642979700002,0.01292281,2539.4,2538.2,1.24595488]
[1642979700201,0.15112278,2539.4,2538.2,1.24595488]
[1642979700902,1.12292506,2539.1,2538.7,1.19657765]
[1642979701103,1.12292506,2539.1,2537.4,3.19510282]
[1642979701311,0.1027977,2539.0,2537.4,3.14510282]
[1642979701547,0.5937977,2539.0,2537.4,3.14510282]
[1642979701748,3.0239258,2538.9,2537.4,3.14510282]
[1642979702048,0.491,2539.0,2537.4,3.0962333]
[1642979702254,1.19787533,2538.6,2537.4,3.0962333]
[1642979702457,1.4379391,2538.2,2537.4,3.0962333]
[1642979702655,3.02388174,2538.9,2537.5,1.13239698]
[1642979702856,1.12292506,2538.7,2537.4,3.0962333]
[1642979703060,0.01200072,2537.9,2537.4,3.0962333]
[1642979703253,0.01200072,2537.9,2537.4,1.3462333]
[1642979703460,0.01200072,2537.9,2535.4,8.94360701]
[1642979703461,0.0124016,2537.5,2535.4,8.94360701]
[1642979703657,1.18573671,2536.7,2535.4,8.94360701]
[1642979703864,0.0124016,2537.5,2535.4,8.94360701]
[1642979703865,1.2643,2537.4,2535.4,8.94360701]
[1642979704057,0.01273557,2536.9,2535.4,8.94360701]
[1642979704252,3.16208171,2537.3,2535.4,8.59360701]
[1642979704453,3.16208171,2537.3,2534.8,0.01275795]
[1642979704454,0.0120521,2537.2,2535.5,8.6]
[1642979704654,0.0120521,2537.2,2535.4,0.01243425]
[1642979704655,0.06215012,2537.2,2535.4,0.01243425]
[1642979704954,0.07099187,2537.2,2535.4,0.01243425]
[1642979705155,1.60978569,2537.3,2535.4,0.01243425]
[1642979705414,0.01249289,2536.2,2535.4,0.01243425]
[1642979705611,0.11036334,2536.1,2535.4,3.425e-05]
[1642979705810,0.01249289,2536.2,2533.2,0.01233326]
[1642979705811,0.01253326,2535.5,2533.2,0.01233326]
[1642979706008,0.0665198,2537.2,2533.2,0.01233326]
[1642979706009,0.01232244,2536.1,2535.4,1.10467498]
[1642979706211,0.491,2536.0,2534.0,0.01223719]
[1642979706412,2.96114978,2535.9,2534.0,0.01223719]
[1642979706609,3.45214978,2535.9,2533.6,0.01280727]
[1642979706811,0.10569419,2535.8,2533.6,0.01280727]
[1642979707012,1.40073776,2536.0,2534.2,0.01256135]
[1642979707208,2.96114978,2536.8,2536.0,4.20221327]
[1642979707413,0.0122708,2536.2,2533.8,0.1864]
[1642979707616,0.0122708,2536.2,2533.6,0.1576]
[1642979707617,0.54357747,2536.1,2533.6,0.1576]
[1642979707814,0.01246007,2535.6,2532.9,0.0008]
[1642979708013,0.01224772,2534.9,2532.9,0.0008]
[1642979708319,1.43694855,2533.3,2532.9,0.0008]
[1642979708515,0.13819997,2533.7,2533.6,1.65442705]
[1642979708713,0.13819997,2533.7,2531.5,2.68300085]
[1642979708714,0.20983371,2533.7,2531.5,2.68300085]
[1642979708917,0.50389371,2533.7,2531.5,2.68300085]
[1642979709154,0.50389371,2533.7,2531.5,8.57430085]
[1642979709155,3.09934975,2533.6,2531.5,8.57430085]
[1642979709354,0.491,2533.5,2532.6,1.38872274]
[1642979709558,0.491,2533.5,2531.4,0.01269927]
[1642979709559,0.491,2533.5,2531.6,2.18927544]
[1642979709761,1.12990702,2532.3,2531.6,2.18927544]
[1642979709957,0.01277713,2533.0,2532.9,3.38972106]
[1642979710158,1.00589961,2533.2,2532.5,2.94507033]
[1642979710159,0.491,2532.9,2532.5,2.94507033]
[1642979710357,0.491,2532.8,2532.5,2.94507033]
[1642979710561,1.04498914,2533.2,2532.5,2.94507033]
[1642979710562,0.491,2532.7,2532.5,7.033e-05]
[1642979710760,7.891,2532.6,2532.5,7.033e-05]
[1642979710966,0.491,2532.6,2532.5,7.033e-05]
[1642979711568,0.491,2532.6,2532.5,1.15332222]
[1642979711959,8.17349961,2533.2,2532.7,1.14121326]
[1642979711960,1.40966961,2532.8,2532.7,1.14121326]
[1642979712162,1.40966961,2532.8,2532.7,1.04121326]
[1642979712467,8.55,2532.6,2530.8,5.37013138]
[1642979712667,0.01254605,2532.2,2530.8,5.37013138]
[1642979712904,0.03162476,2532.9,2530.8,5.37013138]
[1642979712905,2.92361508,2533.0,2530.9,0.04376861]
[1642979713105,2.4294,2534.7,2531.1,0.01269719]
[1642979713106,2.92361508,2533.5,2531.1,0.01269719]
[1642979713308,1.21268674,2533.1,2531.1,0.01269719]
[1642979713510,0.02129961,2533.2,2531.2,0.04206334]
[1642979713707,0.02129961,2533.2,2531.3,0.1579]
[1642979713907,0.10017223,2533.1,2531.2,0.04206334]
[1642979714111,2.97105891,2533.1,2531.4,0.04092649]
[1642979714308,2.97105891,2533.1,2530.9,1.0]
[1642979714309,2.92361508,2533.1,2532.4,1.17657363]
[1642979714510,1.35184105,2532.6,2531.0,0.04320019]
[1642979714715,3.41461508,2532.9,2531.0,0.04320019]
[1642979714908,0.02102129,2533.1,2531.0,0.04320019]
[1642979714909,0.0125066,2532.6,2531.0,0.04320019]
[1642979715113,0.491,2532.5,2531.0,0.04320019]
[1642979715510,0.491,2532.5,2530.8,0.04433703]
[1642979715511,0.0129379,2532.4,2530.8,0.04433703]
[1642979715708,0.0129379,2532.4,2530.4,0.04661073]
[1642979715709,1.25756593,2531.3,2530.4,0.04661073]
[1642979715918,0.13758595,2531.3,2530.9,2.23995997]
[1642979716111,0.01268835,2531.4,2531.3,0.28554223]
[1642979716309,0.03010419,2532.4,2531.3,0.28554223]
[1642979716310,0.01292545,2532.4,2531.3,0.28554223]
[1642979716553,0.01292545,2532.4,2531.3,0.32703715]
[1642979716554,0.491,2531.7,2531.3,0.32703715]
[1642979716758,0.491,2531.7,2530.9,2.23995997]
[1642979716759,4.05,2531.6,2530.9,1.57642869]
[1642979716952,0.01253442,2531.8,2531.7,4.84942662]
[1642979717252,1.35687982,2531.8,2531.7,4.79942662]
[1642979717752,1.84787982,2531.8,2531.7,4.79942662]
[1642979717952,8.55,2531.7,2530.7,1.17657363]
[1642979718153,1.52502735,2530.8,2529.3,0.01236556]
[1642979718356,1.52502735,2530.8,2529.0,1.38372736]
[1642979718553,10.50615357,2533.1,2529.0,1.38372736]
[1642979718774,4.4404154,2534.7,2529.0,1.38372736]
[1642979718775,1.0,2533.4,2531.5,5.0]
[1642979719060,0.77193756,2534.4,2531.9,5.0]
[1642979719267,0.2476,2534.7,2532.6,0.11915828]
[1642979719458,0.2476,2534.7,2533.1,0.01251809]
[1642979719656,0.01234205,2536.5,2534.8,0.04490378]
[1642979719857,3.8281,2536.7,2534.9,8.55]
[1642979720058,2.8422,2537.5,2535.1,0.11915828]
[1642979720059,0.01298706,2536.5,2535.1,0.11915828]
[1642979720298,1.1463,2537.5,2535.1,0.11915828]
[1642979720299,1.1463,2537.5,2535.4,0.0751028]
[1642979720503,1.1463,2537.5,2535.5,0.05647301]
[1642979720706,1.1463,2537.5,2535.9,0.01271941]
[1642979720902,1.1463,2537.5,2536.1,0.01282416]
[1642979721106,0.05729285,2537.4,2535.4,0.01203416]
[1642979721302,0.05729285,2537.4,2535.0,2.68300085]
[1642979721303,0.19694,2537.3,2535.0,2.68300085]
[1642979721510,0.01264003,2536.2,2535.0,2.68300085]
[1642979722109,2.91941964,2537.4,2535.0,2.68300085]
[1642979722110,0.491,2536.7,2535.0,2.68300085]
[1642979722303,0.03222796,2536.6,2534.7,0.49519999]
[1642979722510,0.01299056,2535.4,2533.7,0.01245706]
[1642979722707,8.55,2536.5,2535.7,0.02598112]
[1642979722708,0.19694,2536.3,2535.7,0.02598112]
[1642979722905,3.7506,2536.4,2534.5,0.01209645]
[1642979722906,1.43451696,2535.3,2534.5,0.01209645]
[1642979723106,0.27639994,2536.2,2535.4,4.30355088]
[1642979723410,1.27456043,2536.1,2535.4,4.30355088]
[1642979724045,1.33591167,2534.5,2534.1,2.9314785]
[1642979724254,0.19694,2535.8,2534.6,3.21357672]
[1642979724452,0.19694,2535.8,2534.0,2.68300085]
[1642979724453,8.55,2535.5,2534.0,2.68300085]
[1642979724657,8.55,2535.1,2533.9,1.25353053]
[1642979724848,8.55,2535.1,2532.2,0.01247502]
[1642979724849,0.0121859,2534.5,2533.4,1.1339795]
[1642979725051,2.96281,2537.6,2533.4,0.01209815]
[1642979725052,0.491,2534.4,2533.4,0.01209815]
[1642979725251,0.491,2535.2,2534.0,0.01216998]
[1642979725449,2.91941964,2535.7,2534.1,0.00530113]
[1642979725655,4.3473,2535.9,2534.1,0.00530113]
[1642979725850,3.11635964,2535.8,2534.6,0.01242166]
[1642979726052,3.11635964,2535.8,2534.2,2.23833913]
[1642979726053,9.041,2535.7,2534.2,2.23833913]
[1642979726257,8.55,2534.8,2532.3,0.01200678]
[1642979726452,8.55,2534.8,2532.4,0.07540534]
[1642979726453,0.491,2534.7,2532.4,0.07540534]
[1642979726855,0.491,2534.7,2532.5,23.95]
[1642979727058,0.491,2534.7,2532.3,0.01200678]
[1642979727059,0.01254036,2534.3,2532.3,0.01200678]
[1642979727255,1.27456043,2532.6,2531.5,3.57846273]
[1642979727456,1.40634615,2531.8,2531.5,3.57846273]
[1642979727929,1.76556043,2532.6,2531.5,3.57846273]
[1642979728328,0.491,2532.6,2532.1,0.00960996]
[1642979728536,2.96427,2536.3,2532.6,0.03522168]
[1642979728733,0.69694,2537.8,2531.6,2.91941964]
[1642979728734,1.0,2535.8,2535.0,0.00350718]
[1642979728934,1.0,2535.8,2534.9,3.58227493]
[1642979728935,0.19694,2535.8,2534.9,3.58227493]
[1642979729128,0.19694,2535.8,2534.9,7.493e-05]
[1642979729129,0.01260939,2535.5,2534.9,7.493e-05]
[1642979729333,0.68794,2535.4,2534.9,7.493e-05]
[1642979729929,0.00692275,2535.3,2534.9,7.493e-05]
[1642979730132,0.68794,2535.4,2532.9,0.01268554]
[1642979730133,0.04075534,2534.9,2532.9,0.01268554]
[1642979730332,0.04075534,2534.9,2531.8,2.91941964]
[1642979730333,1.41301831,2534.0,2531.8,2.91941964]
[1642979730532,1.41301831,2534.0,2532.4,0.01205657]
[1642979730533,0.491,2534.0,2532.4,0.01205657]
[1642979730730,1.27456043,2533.8,2532.5,0.03918553]
[1642979730931,1.27456043,2533.8,2532.4,0.01205657]
[1642979731651,1.2168813,2533.6,2532.4,0.01205657]
[1642979731845,1.27456043,2533.8,2533.0,0.95101654]
[1642979731846,0.04723957,2533.5,2533.0,0.95101654]
[1642979732046,0.491,2534.0,2533.0,0.95101654]
[1642979732252,0.491,2534.0,2532.4,0.01205657]
[1642979732650,0.03629012,2534.4,2532.4,0.01205657]
[1642979732651,0.491,2534.8,2533.2,0.01280865]
[1642979732848,0.491,2534.8,2532.4,0.01205657]
[1642979732849,1.22909357,2535.4,2533.7,0.01221539]
[1642979733050,3.6072,2536.1,2532.6,5.96437774]
[1642979733051,1.151,2536.1,2534.6,0.01208847]
[1642979733253,1.27456043,2534.7,2534.6,0.01208847]
[1642979733451,1.27456043,2534.7,2533.8,0.01249137]
[1642979733651,0.19694,2535.7,2533.0,0.07259982]
[1642979733852,0.76739994,2536.0,2533.7,0.01210422]
[1642979734052,1.21504574,2535.3,2533.8,0.05731346]
[1642979734254,0.96433994,2536.0,2533.7,0.01210422]
[1642979734255,0.19694,2535.2,2533.7,0.01210422]
[1642979734559,0.19694,2535.2,2533.1,1.38372736]
[1642979734760,1.1777007,2533.8,2533.1,1.38372736]
[1642979734954,0.491,2535.1,2534.1,0.04059675]
[1642979735154,0.19694,2535.0,2534.0,2.35540139]
[1642979735396,1.31794775,2533.8,2533.2,2.2382599]
[1642979735601,1.10295111,2533.4,2533.2,2.2382599]
[1642979736001,0.491,2533.8,2533.2,2.2382599]
[1642979736204,0.491,2534.8,2532.7,0.01255242]
[1642979736406,0.491,2534.8,2532.2,2.2382599]
[1642979736407,0.491,2535.1,2533.3,0.01297414]
[1642979736604,4.55723865,2536.6,2533.5,0.01290314]
[1642979736605,0.01219442,2536.2,2533.5,0.01290314]
[1642979736803,0.01219442,2536.2,2533.5,2.77532018]
[1642979737012,1.24310888,2535.9,2534.1,0.01225896]
[1642979737203,1.40195278,2535.5,2534.1,0.01225896]
[1642979737408,1.35456347,2535.1,2534.1,0.01225896]
[1642979737805,0.08137763,2535.6,2534.1,0.01225896]
[1642979738002,0.08137763,2535.6,2535.1,4.0636904]
[1642979738207,0.08137763,2535.6,2535.2,0.04802544]
[1642979738405,1.151,2536.1,2535.1,4.0636904]
[1642979738608,3.8511,2536.6,2535.1,4.0636904]
[1642979738807,1.17623242,2536.1,2535.3,0.01248117]
[1642979739040,0.491,2537.3,2535.3,0.01248117]
[1642979739041,0.70065316,2537.3,2535.3,0.01248117]
[1642979739449,0.08137763,2536.0,2535.3,0.01248117]
[1642979739646,0.02095531,2535.5,2535.3,0.01248117]
[1642979740847,0.02095531,2535.5,2535.3,1.28636654]
[1642979741248,0.02095531,2535.5,2535.1,4.0636904]
[1642979741453,1.13791261,2535.3,2535.1,4.0636904]
[1642979742819,0.02095531,2535.5,2535.1,9.04e-05]
[1642979743099,0.70889531,2535.5,2533.5,2.68627585]
[1642979743302,3.07517175,2535.4,2533.5,2.68627585]
[1642979743503,0.491,2535.3,2533.5,2.68627585]
[1642979743700,1.60221504,2533.9,2533.4,1.4269995]
[1642979743908,1.60221504,2533.9,2532.8,0.01244066]
[1642979743909,1.15648903,2533.5,2532.8,0.01244066]
[1642979744302,0.13137762,2533.9,2532.1,5.37181077]
[1642979744505,0.13137762,2533.9,2532.1,5.38386619]
[1642979744704,0.491,2533.8,2532.1,5.38386619]
[1642979744903,0.491,2533.8,2532.7,0.01271014]
[1642979745108,0.491,2533.8,2532.2,2.23890259]
[1642979745304,1.33642732,2533.1,2532.6,0.01297478]
[1642979745509,2.94375048,2533.7,2533.2,2.62239739]
[1642979745705,0.491,2533.8,2533.2,2.62239739]
[1642979745908,0.491,2534.9,2533.6,0.01224787]
[1642979746106,2.94375048,2534.8,2533.6,0.01224787]
[1642979746552,0.491,2534.9,2533.6,0.01224787]
[1642979746753,0.491,2534.9,2534.6,0.79561203]
[1642979746956,0.491,2534.9,2533.2,2.62239739]
[1642979746957,0.491,2534.9,2533.8,0.01211397]
[1642979747153,0.03815754,2535.4,2533.8,0.01211397]
[1642979748054,0.03815754,2535.4,2534.1,0.02788461]
[1642979748258,0.03815754,2535.4,2534.4,0.0126634]
[1642979748658,0.491,2535.8,2535.5,0.07631507]
[1642979748659,1.39101412,2535.7,2535.5,0.07631507]
[1642979748864,1.45929588,2535.7,2535.5,0.07631507]
[1642979749059,8.45,2535.6,2534.4,0.0126634]
[1642979749259,8.45,2535.6,2533.3,3.84346327]
[1642979749260,0.491,2535.5,2533.3,3.84346327]
[1642979749458,0.27639994,2535.4,2533.6,0.01208234]
[1642979749663,0.79601286,2535.4,2533.6,0.01208234]
[1642979749860,0.24601286,2535.4,2533.6,0.01208234]
[1642979750063,0.13137762,2534.5,2534.0,1.48509506]
[1642979750297,1.42929253,2534.3,2533.7,2.23819943]
[1642979750498,0.13137762,2534.5,2533.7,2.23819943]
[1642979750902,0.24601286,2535.4,2533.7,2.23819943]
[1642979751099,0.24601286,2535.4,2534.3,0.01253285]
[1642979751499,1.26514298,2535.1,2534.3,0.01253285]
[1642979751700,0.24601286,2535.4,2534.3,0.01253285]
[1642979751900,0.13137762,2535.3,2534.3,0.01253285]
[1642979752501,0.0770725,2535.2,2534.3,0.01253285]
[1642979752703,0.24601286,2535.4,2535.0,0.01292891]
[1642979752704,1.286e-05,2535.4,2535.0,0.01292891]
[1642979752909,2.96138,2537.7,2535.5,0.0008]
[1642979752910,2.13710302,2537.4,2535.5,0.0008]
[1642979753100,4.0079,2537.5,2535.9,0.0126807]
[1642979753301,0.0387772,2536.4,2535.9,0.0126807]
[1642979753701,0.13137762,2536.3,2535.9,0.0126807]
[1642979754551,0.0387772,2536.4,2535.9,0.0126807]
[1642979754750,0.0387772,2536.4,2536.1,0.02923452]
[1642979754951,1.20103115,2536.3,2536.1,0.02923452]
[1642979755557,0.62237762,2536.3,2535.5,0.0008]
[1642979755856,0.13507605,2536.2,2535.5,0.0008]
[1642979756051,0.491,2536.1,2535.5,0.0008]
[1642979756252,0.441,2536.1,2535.5,0.0008]
[1642979757903,0.13137762,2536.3,2535.6,0.01247932]
[1642979758303,0.13137762,2536.3,2535.5,0.0008]
[1642979758501,0.08233652,2536.2,2535.5,0.0008]
[1642979758704,1.28879556,2536.1,2535.5,0.0008]
[1642979758903,1.77979556,2536.1,2535.5,0.0008]